[Event "Lozovatsky Memorial-A 2020"]
[Site "Chelyabinsk"]
[Date "2020.01.16"]
[Round "2.1"]
[White "Drygalov, Andrey"]
[Black "Kostenko, Petr"]
[Result "1/2-1/2"]
[ECO "C55"]
[WhiteElo "2492"]
[BlackElo "2433"]
[Annotator "ChessBase"]
[PlyCount "124"]
[EventDate "2020.01.15"]
[EventType "tourn"]
[EventCountry "RUS"]
[SourceTitle "playchess.com"]
[Source "ChessBase"]
[SourceQuality "1"]
[TimeControl "5400+30"]

1. e4 {[%emt 0:00:00]} e5 {[%emt 0:02:27]} 2. Nf3 {[%emt 0:00:00]} Nc6 {[%emt 0:00:10]} 3. Bc4 {[%emt 0:00:00]} Nf6 {[%emt 0:00:10]} 4. d3 {[%emt 0:00:00]} h6 {[%emt 0:00:11]} 5. c3 {[%emt 0:00:20]} d6 {[%emt 0:00:20]} 6. O-O {[%emt 0:00:25]} g5 {[%emt 0:00:59]} 7. Re1 {[%emt 0:03:38]} g4 {[%emt 0:00:52]} 8. Nfd2 {[%emt 0:00:05]} h5 {[%emt 0:00:10]} 9. Nf1 {[%emt 0:07:01]} h4 {[%emt 0:00:14]} 10. Bg5 {[%emt 0:04:38]} Rh5 {[%emt 0:00:13]} 11. Qc1 {[%emt 0:02:12]} Be7 {[%emt 0:06:02]} 12. Bxf6 {[%emt 0:21:36]} Bxf6 {[%emt 0:00:11]} 13. Qd1 {[%emt 0:00:27]} Bg7 {[%emt 0:00:29]} 14. Na3 {[%emt 0:00:57]} a6 {[%emt 0:03:21]} 15. Nc2 {[%emt 0:05:15]} Qg5 {[%emt 0:00:43]} 16. Nce3 {[%emt 0:01:06]} Ne7 {[%emt 0:05:53]} 17. a4 {[%emt 0:01:49]} Rh6 {[%emt 0:06:06]} 18. Qb3 {[%emt 0:06:59]} Qh5 {[%emt 0:08:28]} 19. Qd1 {[%emt 0:10:16]} Qg6 {[%emt 0:06:54]} 20. Qb3 {[%emt 0:05:37]} Bf6 {[%emt 0:11:46]} 21. Rad1 {[%emt 0:01:00]} Rh7 {[%emt 0:00:31]} 22. d4 {[%emt 0:01:40]} Kf8 {[%emt 0:01:28]} 23. Rd2 {[%emt 0:07:04]} Rh5 {[%emt 0:03:28]} 24. Qd1 {[%emt 0:01:39]} Bd7 {[%emt 0:03:49]} 25. Be2 {[%emt 0:04:06]} Rg5 {[%emt 0:00:14]} 26. Nc4 {[%emt 0:00:43]} h3 {[%emt 0:09:19]} 27. Ng3 {[%emt 0:07:37]} hxg2 {[%emt 0:00:13]} 28. dxe5 {[%emt 0:00:05]} Bxe5 {[%emt 0:00:03]} 29. Nxe5 {[%emt 0:00:03]} Rxe5 {[%emt 0:00:07]} 30. f4 {[%emt 0:00:21]} gxf3 {[%emt 0:03:17]} 31. Bxf3 {[%emt 0:00:41]} Qh6 {[%emt 0:00:12]} 32. Rf2 {[%emt 0:01:06]} Re8 {[%emt 0:01:43]} 33. Bxg2 {[%emt 0:00:20]} Be6 {[%emt 0:01:03]} 34. Qf3 {[%emt 0:01:34]} Nc6 {[%emt 0:01:00]} 35. Qf4 {[%emt 0:02:42]} Qxf4 {[%emt 0:00:13]} 36. Rxf4 {[%emt 0:00:05]} Rg5 {[%emt 0:01:04]} 37. Rh4 {[%emt 0:00:31]} Ke7 {[%emt 0:00:38]} 38. Bh3 {[%emt 0:02:03]} Ne5 {[%emt 0:00:13]} 39. Rf1 {[%emt 0:00:03]} Reg8 {[%emt 0:00:45]} 40. Bxe6 {[%emt 0:00:13]} fxe6 {[%emt 0:00:25]} 41. Rh7+ {[%emt 0:00:18]} R5g7 {[%emt 0:00:06]} 42. Rxg7+ {[%emt 0:00:11]} Rxg7 {[%emt 0:00:06]} 43. b3 {[%emt 0:02:21]} a5 {[%emt 0:01:07]} 44. b4 {[%emt 0:01:14]} Nd7 {[%emt 0:02:54]} 45. Rb1 {[%emt 0:00:25]} Rg5 {[%emt 0:01:14]} 46. Kg2 {[%emt 0:00:38]} Kf6 {[%emt 0:04:45]} 47. h4 {[%emt 0:00:56]} Rg8 {[%emt 0:00:04]} 48. Rf1+ {[%emt 0:00:13]} Ke5 {[%emt 0:01:26]} 49. Rf7 {[%emt 0:00:55]} Nf6 {[%emt 0:00:06]} 50. Kf3 {[%emt 0:00:07]} b6 {[%emt 0:04:43]} 51. Rxc7 {[%emt 0:01:01]} Rf8 {[%emt 0:01:23]} 52. Ke2 {[%emt 0:00:49]} axb4 {[%emt 0:00:21]} 53. cxb4 {[%emt 0:00:10]} Ra8 {[%emt 0:00:02]} 54. Rb7 {[%emt 0:01:01]} Rxa4 {[%emt 0:00:06]} 55. Rxb6 {[%emt 0:00:10]} Kf4 {[%emt 0:01:32]} 56. Rxd6 {[%emt 0:00:20]} Kxg3 {[%emt 0:00:12]} 57. Rxe6 {[%emt 0:00:03]} Nh5 {[%emt 0:00:38]} 58. Rb6 {[%emt 0:00:23]} Ra3 {[%emt 0:00:06]} 59. Kd2 {[%emt 0:00:23]} Kf4 {[%emt 0:00:24]} 60. Rb8 {[%emt 0:00:33]} Ng3 {[%emt 0:00:13]} 61. b5 {[%emt 0:00:19]} Nxe4+ {[%emt 0:04:18]} 62. Kc2 {[%emt 0:00:04]} Nd6 {[%emt 0:02:12]} 1/2-1/2

[Event "Lozovatsky Memorial-A 2020"]
[Site "Chelyabinsk"]
[Date "2020.01.18"]
[Round "4.1"]
[White "Drygalov, Andrey"]
[Black "Remizov, Yaroslav"]
[Result "1/2-1/2"]
[ECO "B13"]
[WhiteElo "2492"]
[BlackElo "2382"]
[Annotator "ChessBase"]
[PlyCount "111"]
[EventDate "2020.01.15"]
[EventType "tourn"]
[EventCountry "RUS"]
[SourceTitle "playchess.com"]
[Source "ChessBase"]
[SourceQuality "1"]
[TimeControl "5400+30"]

1. e4 {[%emt 0:00:16]} c6 {[%emt 0:00:00]} 2. d4 {[%emt 0:00:03]} d5 {[%emt 0:00:00]} 3. exd5 {[%emt 0:00:03]} cxd5 {[%emt 0:00:00]} 4. Bd3 {[%emt 0:00:04]} Nc6 {[%emt 0:00:00]} 5. c3 {[%emt 0:00:05]} Qc7 {[%emt 0:00:07]} 6. h3 {[%emt 0:00:14]} g6 {[%emt 0:15:32]} 7. Nf3 {[%emt 0:00:05]} Nf6 {[%emt 0:06:48]} 8. O-O {[%emt 0:00:10]} Bf5 {[%emt 0:02:13]} 9. Re1 {[%emt 0:00:05]} Bxd3 {[%emt 0:10:57]} 10. Qxd3 {[%emt 0:00:05]} Bg7 {[%emt 0:00:05]} 11. Nbd2 {[%emt 0:11:28]} O-O {[%emt 0:01:36]} 12. Nb3 {[%emt 0:01:18]} Rae8 {[%emt 0:08:02]} 13. Be3 {[%emt 0:08:04]} e6 {[%emt 0:12:51]} 14. Nc5 {[%emt 0:16:10]} Nd7 {[%emt 0:09:48]} 15. Nb3 {[%emt 0:23:22]} Na5 {[%emt 0:02:48]} 16. Nxa5 {[%emt 0:10:24]} Qxa5 {[%emt 0:00:08]} 17. Bf4 {[%emt 0:01:25]} Rc8 {[%emt 0:05:38]} 18. Ne5 {[%emt 0:01:51]} Nxe5 {[%emt 0:01:27]} 19. Bxe5 {[%emt 0:01:20]} Bxe5 {[%emt 0:00:40]} 20. Rxe5 {[%emt 0:00:06]} b5 {[%emt 0:00:21]} 21. a3 {[%emt 0:00:32]} Qa4 {[%emt 0:06:45]} 22. h4 {[%emt 0:02:25]} b4 {[%emt 0:05:13]} 23. cxb4 {[%emt 0:01:18]} Qc2 {[%emt 0:00:06]} 24. Qe2 {[%emt 0:02:46]} Qxe2 {[%emt 0:03:48]} 25. Rxe2 {[%emt 0:00:32]} Rc4 {[%emt 0:00:04]} 26. Rd1 {[%emt 0:00:12]} Rfc8 {[%emt 0:01:26]} 27. Kf1 {[%emt 0:01:08]} Kg7 {[%emt 0:01:36]} 28. g3 {[%emt 0:00:48]} Kf6 {[%emt 0:01:34]} 29. Re3 {[%emt 0:03:58]} Rc2 {[%emt 0:03:20]} 30. Rf3+ {[%emt 0:00:11]} Ke7 {[%emt 0:01:06]} 31. Rb3 {[%emt 0:00:05]} Kd6 {[%emt 0:00:30]} 32. Rdd3 {[%emt 0:07:29]} Rc1+ {[%emt 0:00:48]} 33. Ke2 {[%emt 0:00:07]} R8c2+ {[%emt 0:00:40]} 34. Rd2 {[%emt 0:00:10]} Rc4 {[%emt 0:00:29]} 35. Rf3 {[%emt 0:00:37]} f5 {[%emt 0:00:30]} 36. Rfd3 {[%emt 0:02:34]} Rb1 {[%emt 0:00:29]} 37. Kf3 {[%emt 0:01:37]} h6 {[%emt 0:00:07]} 38. Re2 {[%emt 0:05:14]} g5 {[%emt 0:00:24]} 39. hxg5 {[%emt 0:00:01]} hxg5 {[%emt 0:00:03]} 40. b3 {[%emt 0:00:27]} Rc7 {[%emt 0:01:21]} 41. Rde3 {[%emt 0:00:16]} Re7 {[%emt 0:00:33]} 42. Rc3 {[%emt 0:00:11]} g4+ {[%emt 0:00:20]} 43. Kf4 {[%emt 0:01:37]} Rd1 {[%emt 0:00:09]} 44. Kg5 {[%emt 0:00:23]} Rxd4 {[%emt 0:00:45]} 45. Kf6 {[%emt 0:00:22]} Re8 {[%emt 0:00:33]} 46. b5 {[%emt 0:00:29]} Re4 {[%emt 0:00:44]} 47. Rc6+ {[%emt 0:00:06]} Kd7 {[%emt 0:00:02]} 48. Rec2 {[%emt 0:00:10]} Rf8+ {[%emt 0:00:11]} 49. Kg7 {[%emt 0:00:10]} Rb8 {[%emt 0:00:09]} 50. Rc7+ {[%emt 0:01:46]} Kd6 {[%emt 0:00:02]} 51. Kf6 {[%emt 0:00:08]} Rb6 {[%emt 0:00:45]} 52. Rxa7 {[%emt 0:00:13]} Rxb5 {[%emt 0:00:42]} 53. Ra6+ {[%emt 0:00:46]} Kd7 {[%emt 0:00:04]} 54. Ra7+ {[%emt 0:00:34]} Kd6 {[%emt 0:00:05]} 55. Ra6+ {[%emt 0:00:40]} Kd7 {[%emt 0:00:05]} 56. Ra7+ 1/2-1/2

[Event "Lozovatsky Memorial-A 2020"]
[Site "Chelyabinsk"]
[Date "2020.01.18"]
[Round "4.2"]
[White "Gutenev, Alexander"]
[Black "Kostenko, Petr"]
[Result "1-0"]
[ECO "B43"]
[WhiteElo "2457"]
[BlackElo "2433"]
[Annotator "ChessBase"]
[PlyCount "95"]
[EventDate "2020.01.15"]
[EventType "tourn"]
[EventCountry "RUS"]
[SourceTitle "playchess.com"]
[Source "ChessBase"]
[SourceQuality "1"]
[TimeControl "5400+30"]

1. e4 {[%emt 0:09:08]} c5 {[%emt 0:00:00]} 2. Nf3 {[%emt 0:00:47]} e6 {[%emt 0:00:00]} 3. d4 {[%emt 0:00:11]} cxd4 {[%emt 0:00:00]} 4. Nxd4 {[%emt 0:00:06]} a6 {[%emt 0:00:00]} 5. Nc3 {[%emt 0:03:39]} b5 {[%emt 0:00:07]} 6. Bd3 {[%emt 0:01:03]} Qb6 {[%emt 0:00:09]} 7. Nf3 {[%emt 0:02:19]} Qc7 {[%emt 0:00:16]} 8. O-O {[%emt 0:01:39]} Bb7 {[%emt 0:00:05]} 9. Re1 {[%emt 0:01:34]} Nf6 {[%emt 0:02:32]} 10. e5 {[%emt 0:04:24]} Nd5 {[%emt 0:00:07]} 11. Ne4 {[%emt 0:02:44]} Nc6 {[%emt 0:00:17]} 12. c4 {[%emt 0:05:43]} bxc4 {[%emt 0:02:23]} 13. Bxc4 {[%emt 0:00:43]} Nxe5 {[%emt 0:00:43]} 14. Bxd5 {[%emt 0:04:24]} Bxd5 {[%emt 0:00:34]} 15. Nxe5 {[%emt 0:01:11]} Bb4 {[%emt 0:02:36]} 16. Nc3 {[%emt 0:10:52]} Bxc3 {[%emt 0:01:11]} 17. bxc3 {[%emt 0:00:04]} Qxc3 {[%emt 0:00:06]} 18. Bf4 {[%emt 0:00:18]} O-O {[%emt 0:00:34]} 19. Nxd7 {[%emt 0:08:55]} Rfd8 {[%emt 0:00:07]} 20. Be5 {[%emt 0:00:21]} Qb4 {[%emt 0:00:20]} 21. a3 {[%emt 0:02:10]} Qh4 {[%emt 0:00:52]} 22. Bg3 {[%emt 0:01:27]} Qg5 {[%emt 0:00:32]} 23. Nb6 {[%emt 0:07:46]} Bxg2 {[%emt 0:00:09]} 24. Qc1 {[%emt 0:00:19]} Qa5 {[%emt 0:00:14]} 25. Nxa8 {[%emt 0:05:36]} Bxa8 {[%emt 0:00:10]} 26. Qc7 {[%emt 0:01:51]} Qd5 {[%emt 0:00:08]} 27. f3 {[%emt 0:00:06]} Re8 {[%emt 0:00:07]} 28. Qc3 {[%emt 0:00:29]} Qxf3 {[%emt 0:00:23]} 29. Qxf3 {[%emt 0:00:04]} Bxf3 {[%emt 0:00:02]} 30. Rab1 {[%emt 0:00:11]} Bc6 {[%emt 0:00:21]} 31. Rb6 {[%emt 0:00:38]} Bb5 {[%emt 0:00:04]} 32. Rc1 {[%emt 0:00:35]} h6 {[%emt 0:00:59]} 33. Rc7 {[%emt 0:00:33]} Rd8 {[%emt 0:00:04]} 34. Rbb7 {[%emt 0:00:18]} Rd1+ {[%emt 0:00:06]} 35. Kf2 {[%emt 0:00:05]} Rf1+ {[%emt 0:00:07]} 36. Ke3 {[%emt 0:00:39]} Rf5 {[%emt 0:00:07]} 37. Rc2 {[%emt 0:00:55]} g5 {[%emt 0:00:47]} 38. Rf2 {[%emt 0:00:25]} Rxf2 {[%emt 0:00:02]} 39. Bxf2 {[%emt 0:00:15]} Kg7 {[%emt 0:00:04]} 40. Kd4 {[%emt 0:00:20]} Kg6 {[%emt 0:00:04]} 41. Rxb5 {[%emt 0:04:31]} axb5 {[%emt 0:00:04]} 42. Kc5 {[%emt 0:00:02]} e5 {[%emt 0:00:10]} 43. Kxb5 {[%emt 0:00:03]} e4 {[%emt 0:00:05]} 44. a4 {[%emt 0:01:30]} f5 {[%emt 0:00:05]} 45. a5 {[%emt 0:00:37]} f4 {[%emt 0:00:04]} 46. Kc4 {[%emt 0:00:06]} e3 {[%emt 0:00:04]} 47. Bxe3 {[%emt 0:00:17]} fxe3 {[%emt 0:00:03]} 48. Kd3 {[%emt 0:00:03]} 1-0

[Event "Lozovatsky Memorial-A 2020"]
[Site "Chelyabinsk"]
[Date "2020.01.18"]
[Round "4.3"]
[White "Korneev, Oleg"]
[Black "Salemgareev, Tagir"]
[Result "1/2-1/2"]
[ECO "A46"]
[WhiteElo "2513"]
[BlackElo "2458"]
[Annotator "ChessBase"]
[PlyCount "37"]
[EventDate "2020.01.15"]
[EventType "tourn"]
[EventCountry "RUS"]
[SourceTitle "playchess.com"]
[Source "ChessBase"]
[SourceQuality "1"]
[TimeControl "5400+30"]

1. d4 {[%emt 0:06:10]} Nf6 {[%emt 0:00:00]} 2. Nf3 {[%emt 0:00:10]} e6 {[%emt 0:00:05]} 3. Bf4 {[%emt 0:00:02]} b6 {[%emt 0:00:05]} 4. e3 {[%emt 0:00:04]} Bb7 {[%emt 0:00:04]} 5. Nbd2 {[%emt 0:00:07]} Bd6 {[%emt 0:04:48]} 6. Bg3 {[%emt 0:05:33]} Bxg3 {[%emt 0:04:40]} 7. hxg3 {[%emt 0:01:14]} d6 {[%emt 0:00:14]} 8. Bd3 {[%emt 0:09:55]} Nbd7 {[%emt 0:09:19]} 9. c3 {[%emt 0:12:14]} Qe7 {[%emt 0:01:50]} 10. Qe2 {[%emt 0:04:41]} e5 {[%emt 0:11:21]} 11. e4 {[%emt 0:01:13]} O-O {[%emt 0:01:39]} 12. O-O {[%emt 0:09:34]} Rfe8 {[%emt 0:00:51]} 13. Rfe1 {[%emt 0:00:28]} g6 {[%emt 0:02:38]} 14. a4 {[%emt 0:14:39]} a5 {[%emt 0:07:04]} 15. d5 {[%emt 0:02:43]} c6 {[%emt 0:02:32]} 16. dxc6 {[%emt 0:00:39]} Bxc6 {[%emt 0:00:04]} 17. Bb5 {[%emt 0:00:33]} Rec8 {[%emt 0:10:01]} 18. Bxc6 {[%emt 0:06:44]} Rxc6 {[%emt 0:00:04]} 19. c4 {[%emt 0:04:26]} 1/2-1/2

[Event "Lozovatsky Memorial-A 2020"]
[Site "Chelyabinsk"]
[Date "2020.01.18"]
[Round "4.4"]
[White "Bezgodov, Alexei"]
[Black "Harutjunyan, Gevorg"]
[Result "1/2-1/2"]
[ECO "B19"]
[WhiteElo "2456"]
[BlackElo "2444"]
[Annotator "ChessBase"]
[PlyCount "95"]
[EventDate "2020.01.15"]
[EventType "tourn"]
[EventCountry "RUS"]
[SourceTitle "playchess.com"]
[Source "ChessBase"]
[SourceQuality "1"]
[TimeControl "5400+30"]

1. e4 {[%emt 0:00:00]} c6 {[%emt 0:00:00]} 2. d4 {[%emt 0:00:00]} d5 {[%emt 0:00:00]} 3. Nc3 {[%emt 0:00:00]} dxe4 {[%emt 0:00:02]} 4. Nxe4 {[%emt 0:00:03]} Bf5 {[%emt 0:00:08]} 5. Ng3 {[%emt 0:00:09]} Bg6 {[%emt 0:00:06]} 6. Nf3 {[%emt 0:00:16]} Nd7 {[%emt 0:00:12]} 7. h4 {[%emt 0:00:09]} h6 {[%emt 0:00:05]} 8. h5 {[%emt 0:00:07]} Bh7 {[%emt 0:00:05]} 9. Bd3 {[%emt 0:00:10]} Bxd3 {[%emt 0:00:06]} 10. Qxd3 {[%emt 0:00:06]} e6 {[%emt 0:00:05]} 11. Bf4 {[%emt 0:02:42]} Qa5+ {[%emt 0:00:46]} 12. Bd2 {[%emt 0:00:06]} Qc7 {[%emt 0:00:04]} 13. O-O-O {[%emt 0:00:39]} Ngf6 {[%emt 0:00:10]} 14. Ne4 {[%emt 0:03:18]} Be7 {[%emt 0:01:32]} 15. Nxf6+ {[%emt 0:03:45]} Bxf6 {[%emt 0:00:14]} 16. g3 {[%emt 0:05:57]} Qb6 {[%emt 0:03:59]} 17. c3 {[%emt 0:13:23]} O-O-O {[%emt 0:09:33]} 18. Kb1 {[%emt 0:02:23]} Qb5 {[%emt 0:18:12]} 19. Qxb5 {[%emt 0:11:03]} cxb5 {[%emt 0:00:07]} 20. Kc2 {[%emt 0:01:19]} Nb6 {[%emt 0:03:04]} 21. Ne5 {[%emt 0:02:08]} Bxe5 {[%emt 0:06:03]} 22. dxe5 {[%emt 0:00:24]} Nc4 {[%emt 0:09:25]} 23. Bf4 {[%emt 0:01:52]} Kc7 {[%emt 0:11:08]} 24. Rxd8 {[%emt 0:03:43]} Rxd8 {[%emt 0:00:19]} 25. Rh4 {[%emt 0:00:49]} Rh8 {[%emt 0:00:43]} 26. Rg4 {[%emt 0:03:27]} Rh7 {[%emt 0:00:47]} 27. b3 {[%emt 0:01:12]} Nb6 {[%emt 0:00:50]} 28. Be3 {[%emt 0:05:55]} Nd7 {[%emt 0:02:29]} 29. Rf4 {[%emt 0:13:13]} g5 {[%emt 0:03:20]} 30. hxg6 {[%emt 0:00:39]} fxg6 {[%emt 0:00:05]} 31. Rg4 {[%emt 0:05:12]} g5 {[%emt 0:03:05]} 32. f4 {[%emt 0:01:13]} gxf4 {[%emt 0:00:04]} 33. Bxf4 {[%emt 0:00:43]} h5 {[%emt 0:00:16]} 34. Rh4 {[%emt 0:02:12]} Nf8 {[%emt 0:01:01]} 35. Bg5 {[%emt 0:00:33]} Ng6 {[%emt 0:02:44]} 36. Rh2 {[%emt 0:00:20]} Kc6 {[%emt 0:01:31]} 37. Bf6 {[%emt 0:00:32]} Kd5 {[%emt 0:02:50]} 38. Re2 {[%emt 0:00:13]} Rc7 {[%emt 0:04:28]} 39. Kd2 {[%emt 0:01:16]} Ne7 {[%emt 0:00:29]} 40. Kd3 {[%emt 0:06:04]} Nf5 {[%emt 0:01:57]} 41. Rg2 {[%emt 0:00:04]} a6 {[%emt 0:07:05]} 42. g4 {[%emt 0:02:04]} hxg4 {[%emt 0:00:28]} 43. Rxg4 {[%emt 0:00:02]} Rh7 {[%emt 0:00:17]} 44. a4 {[%emt 0:01:25]} Rh3+ {[%emt 0:02:13]} 45. Kd2 {[%emt 0:00:03]} Rh2+ {[%emt 0:01:14]} 46. Kd3 {[%emt 0:00:06]} Rh3+ {[%emt 0:01:36]} 47. Kd2 {[%emt 0:00:03]} Rh2+ {[%emt 0:00:22]} 48. Kd3 {[%emt 0:00:02] Ke4+ Kxe4} 1/2-1/2

[Event "Lozovatsky Memorial-A 2020"]
[Site "Chelyabinsk"]
[Date "2020.01.18"]
[Round "4.4"]
[White "Radzhabov, Rodion"]
[Black "Badelka, Olga"]
[Result "*"]
[WhiteElo "2381"]
[BlackElo "2392"]
[Annotator "ChessBase"]
[PlyCount "32"]
[EventDate "2020.01.15"]
[EventType "tourn"]
[EventCountry "RUS"]
[SourceTitle "playchess.com"]
[Source "ChessBase"]
[SourceQuality "1"]
[TimeControl "5400+30"]

1. e4 {[%emt 0:00:00]} c6 {[%emt 0:00:00]} 2. d4 {[%emt 0:00:00]} d5 {[%emt 0:00:00]} 3. Nc3 {[%emt 0:00:00]} dxe4 {[%emt 0:00:02]} 4. Nxe4 {[%emt 0:00:03]} Bf5 {[%emt 0:00:08]} 5. Ng3 {[%emt 0:00:09]} Bg6 {[%emt 0:00:06]} 6. Nf3 {[%emt 0:00:16]} Nd7 {[%emt 0:00:12]} 7. h4 {[%emt 0:00:09]} h6 {[%emt 0:00:05]} 8. h5 {[%emt 0:00:07]} Bh7 {[%emt 0:00:05]} 9. Bd3 {[%emt 0:00:10]} Bxd3 {[%emt 0:00:06]} 10. Qxd3 {[%emt 0:00:06]} e6 {[%emt 0:00:05]} 11. Bf4 {[%emt 0:02:42]} Qa5+ {[%emt 0:00:46]} 12. Bd2 {[%emt 0:00:06]} Qc7 {[%emt 0:00:04]} 13. O-O-O {[%emt 0:00:39]} Ngf6 {[%emt 0:00:10]} 14. Ne4 {[%emt 0:03:18]} Be7 {[%emt 0:01:32]} 15. Nxf6+ {[%emt 0:03:45]} Bxf6 {[%emt 0:00:14]} 16. g3 {[%emt 0:05:57]} Qb6 {[%emt 0:03:59]} *

[Event "Lozovatsky Memorial-A 2020"]
[Site "Chelyabinsk"]
[Date "2020.01.18"]
[Round "4.5"]
[White "Bezgodov, Alexei"]
[Black "Harutjunyan, Gevorg"]
[Result "*"]
[WhiteElo "2456"]
[BlackElo "2444"]
[Annotator "ChessBase"]
[PlyCount "29"]
[EventDate "2020.01.15"]
[EventType "tourn"]
[EventCountry "RUS"]
[SourceTitle "playchess.com"]
[Source "ChessBase"]
[SourceQuality "1"]
[TimeControl "5400+30"]

1. Nf3 {[%emt 0:00:00]} c5 {[%emt 0:00:13]} 2. c4 {[%emt 0:00:00]} Nc6 {[%emt 0:00:24]} 3. Nc3 {[%emt 0:00:03]} g6 {[%emt 0:01:14]} 4. e3 {[%emt 0:00:40]} Nf6 {[%emt 0:00:06]} 5. d4 {[%emt 0:00:06]} cxd4 {[%emt 0:00:05]} 6. exd4 {[%emt 0:00:05]} d5 {[%emt 0:00:03]} 7. cxd5 {[%emt 0:00:22]} Nxd5 {[%emt 0:00:05]} 8. Qb3 {[%emt 0:00:10]} Nxc3 {[%emt 0:00:26]} 9. Bc4 {[%emt 0:00:17]} e6 {[%emt 0:00:08]} 10. bxc3 {[%emt 0:00:06]} Bd7 {[%emt 0:02:21]} 11. Be2 {[%emt 0:08:33]} Na5 {[%emt 0:03:08]} 12. Qc2 {[%emt 0:02:55]} Bg7 {[%emt 0:00:20]} 13. Ba3 {[%emt 0:03:51]} Bf8 {[%emt 0:00:18]} 14. Bxf8 {[%emt 0:06:40]} Kxf8 {[%emt 0:00:06]} 15. O-O {[%emt 0:00:22]} *

[Event "Lozovatsky Memorial-A 2020"]
[Site "Chelyabinsk"]
[Date "2020.01.18"]
[Round "4.5"]
[White "Radzhabov, Rodion"]
[Black "Badelka, Olga"]
[Result "1/2-1/2"]
[ECO "A04"]
[WhiteElo "2381"]
[BlackElo "2392"]
[Annotator "ChessBase"]
[PlyCount "77"]
[EventDate "2020.01.15"]
[EventType "tourn"]
[EventCountry "RUS"]
[SourceTitle "playchess.com"]
[Source "ChessBase"]
[SourceQuality "1"]
[TimeControl "5400+30"]

1. Nf3 {[%emt 0:00:00]} c5 {[%emt 0:00:13]} 2. c4 {[%emt 0:00:00]} Nc6 {[%emt 0:00:24]} 3. Nc3 {[%emt 0:00:03]} g6 {[%emt 0:01:14]} 4. e3 {[%emt 0:00:40]} Nf6 {[%emt 0:00:06]} 5. d4 {[%emt 0:00:06]} cxd4 {[%emt 0:00:05]} 6. exd4 {[%emt 0:00:05]} d5 {[%emt 0:00:03]} 7. cxd5 {[%emt 0:00:22]} Nxd5 {[%emt 0:00:05]} 8. Qb3 {[%emt 0:00:10]} Nxc3 {[%emt 0:00:26]} 9. Bc4 {[%emt 0:00:17]} e6 {[%emt 0:00:08]} 10. bxc3 {[%emt 0:00:06]} Bd7 {[%emt 0:02:21]} 11. Be2 {[%emt 0:08:33]} Na5 {[%emt 0:03:08]} 12. Qc2 {[%emt 0:02:55]} Bg7 {[%emt 0:00:20]} 13. Ba3 {[%emt 0:03:51]} Bf8 {[%emt 0:00:18]} 14. Bxf8 {[%emt 0:06:40]} Kxf8 {[%emt 0:00:06]} 15. O-O {[%emt 0:00:22]} Rc8 {[%emt 0:03:45]} 16. Qb2 {[%emt 0:13:00]} Kg7 {[%emt 0:12:54]} 17. c4 {[%emt 0:09:19]} Nxc4 {[%emt 0:14:39]} 18. Bxc4 {[%emt 0:00:25]} Rxc4 {[%emt 0:00:04]} 19. d5+ {[%emt 0:39:10]} Qf6 {[%emt 0:01:21]} 20. Qxb7 {[%emt 0:01:03]} Bc8 {[%emt 0:00:31]} 21. Qxa7 {[%emt 0:03:40]} exd5 {[%emt 0:01:09]} 22. Rfe1 {[%emt 0:03:39]} Rd8 {[%emt 0:08:58]} 23. Qe7 {[%emt 0:04:11]} Be6 {[%emt 0:07:27]} 24. Qxf6+ {[%emt 0:01:55]} Kxf6 {[%emt 0:00:04]} 25. h3 {[%emt 0:00:58]} d4 {[%emt 0:04:25]} 26. Rad1 {[%emt 0:00:24]} Bf5 {[%emt 0:05:31]} 27. Rd2 {[%emt 0:00:48]} d3 {[%emt 0:02:51]} 28. Red1 {[%emt 0:00:45]} g5 {[%emt 0:05:30]} 29. Ne1 {[%emt 0:00:14]} Ra4 {[%emt 0:01:12]} 30. f3 {[%emt 0:00:43]} Ra3 {[%emt 0:06:00]} 31. Kf2 {[%emt 0:00:05]} Bg6 {[%emt 0:08:23]} 32. Ke3 {[%emt 0:00:10]} h5 {[%emt 0:00:28]} 33. Nxd3 {[%emt 0:00:47]} Rdxd3+ {[%emt 0:00:30]} 34. Rxd3 {[%emt 0:00:04]} Bxd3 {[%emt 0:00:04]} 35. Rxd3 {[%emt 0:00:02]} Rxa2 {[%emt 0:00:08]} 36. Rd2 {[%emt 0:00:34]} Rxd2 {[%emt 0:00:07]} 37. Kxd2 {[%emt 0:00:01]} Ke5 {[%emt 0:01:49]} 38. Ke3 {[%emt 0:00:40]} f6 {[%emt 0:00:07]} 39. g4 {[%emt 0:00:51]} 1/2-1/2

[Event "Lozovatsky Memorial-A 2020"]
[Site "Chelyabinsk"]
[Date "2020.01.19"]
[Round "5.1"]
[White "Harutjunyan, Gevorg"]
[Black "Drygalov, Andrey"]
[Result "1/2-1/2"]
[ECO "B96"]
[WhiteElo "2444"]
[BlackElo "2492"]
[Annotator "ChessBase"]
[PlyCount "48"]
[EventDate "2020.01.15"]
[EventType "tourn"]
[EventCountry "RUS"]
[SourceTitle "playchess.com"]
[Source "ChessBase"]
[SourceQuality "1"]
[TimeControl "5400+30"]

1. e4 {[%emt 0:00:00]} c5 {[%emt 0:00:00]} 2. Nf3 {[%emt 0:00:00]} d6 {[%emt 0:00:00]} 3. d4 {[%emt 0:00:03]} cxd4 {[%emt 0:00:00]} 4. Nxd4 {[%emt 0:00:06]} Nf6 {[%emt 0:00:00]} 5. Nc3 {[%emt 0:00:07]} a6 {[%emt 0:00:00]} 6. Bg5 {[%emt 0:00:28]} e6 {[%emt 0:00:00]} 7. f4 {[%emt 0:00:09]} h6 {[%emt 0:00:00]} 8. Bh4 {[%emt 0:00:09]} Qb6 {[%emt 0:00:00]} 9. Qd3 {[%emt 0:00:42]} Qxb2 {[%emt 0:00:00]} 10. Rb1 {[%emt 0:00:07]} Qa3 {[%emt 0:00:03]} 11. f5 {[%emt 0:00:31]} Be7 {[%emt 0:00:06]} 12. fxe6 {[%emt 0:00:06]} Bxe6 {[%emt 0:00:03]} 13. Nxe6 {[%emt 0:02:48]} fxe6 {[%emt 0:00:41]} 14. e5 {[%emt 0:06:59]} dxe5 {[%emt 0:00:05]} 15. Bxf6 {[%emt 0:07:48]} gxf6 {[%emt 0:00:14]} 16. Be2 {[%emt 0:07:59]} e4 {[%emt 0:00:09]} 17. Qg3 {[%emt 0:10:35]} Nd7 {[%emt 0:23:41]} 18. Rxb7 {[%emt 0:02:15]} Rc8 {[%emt 0:13:46]} 19. O-O {[%emt 0:22:03]} Rxc3 {[%emt 0:20:27]} 20. Qg6+ {[%emt 0:01:13]} Kd8 {[%emt 0:01:32]} 21. Rd1 {[%emt 0:00:09]} Rc7 {[%emt 0:20:56]} 22. Rb8+ {[%emt 0:13:40]} Rc8 {[%emt 0:00:09]} 23. Rb7 {[%emt 0:01:29]} Rc7 {[%emt 0:00:26]} 24. Rb8+ {[%emt 0:00:17]} Rc8 {[%emt 0:00:03]} 1/2-1/2